{"text_format":"1","workbook":"xlsx","n_sheets":1,"sheets":["Tabelle1"],"not_rendered":{"charts":0,"images":0,"macros":1,"external_links":0,"defined_names":0,"comments":0,"pivot_tables":0},"unopened":[],"bounds":{"document_bytes":16777216,"sheet_cells":100000,"rows_first":2000,"rows_last":500,"rows_between":2000,"halvings":0,"cell_chars":16384,"cell_head_chars":4096},"cells_cut":0,"cells_raw":0,"read":"whole","date_system":"1900"}

{"sheet":"Tabelle1","index":0,"n_rows":24,"n_cols":5,"rows_kept":24,"cut":false,"hidden":false,"merged":[]}
[null,null,null,"https://www.imdb.com/name/nm3945785/",{"$f":"IFERROR(INDEX(_xlfn.TEXTSPLIT(D1,\"/\"),5),\"\")","v":"nm3945785"}]
[null,null,null,"https://www.imdb.com/name/nm0007814/",{"$f":"IFERROR(INDEX(_xlfn.TEXTSPLIT(D2,\"/\"),5),\"\")","v":"nm0007814"}]
[null,null,null,"https://www.imdb.com/name/nm1150821/",{"$f":"IFERROR(INDEX(_xlfn.TEXTSPLIT(D3,\"/\"),5),\"\")","v":"nm1150821"}]
[null,null,null,"https://www.imdb.com/name/nm6798381/?language=de-de",{"$f":"IFERROR(INDEX(_xlfn.TEXTSPLIT(D4,\"/\"),5),\"\")","v":"nm6798381"}]
[null,null,null,"https://www.imdb.com/name/nm0078889/",{"$f":"IFERROR(INDEX(_xlfn.TEXTSPLIT(D5,\"/\"),5),\"\")","v":"nm0078889"}]
[null,null,null,"https://www.imdb.com/name/nm2138653/",{"$f":"IFERROR(INDEX(_xlfn.TEXTSPLIT(D6,\"/\"),5),\"\")","v":"nm2138653"}]
[null,null,null,"https://www.imdb.com/name/nm13070206/",{"$f":"IFERROR(INDEX(_xlfn.TEXTSPLIT(D7,\"/\"),5),\"\")","v":"nm13070206"}]
[null,null,null,"https://www.imdb.com/name/nm1023075/",{"$f":"IFERROR(INDEX(_xlfn.TEXTSPLIT(D8,\"/\"),5),\"\")","v":"nm1023075"}]
[null,null,null,"https://www.imdb.com/name/nm0292631/",{"$f":"IFERROR(INDEX(_xlfn.TEXTSPLIT(D9,\"/\"),5),\"\")","v":"nm0292631"}]
[null,null,null,"https://www.imdb.com/name/nm0489319/",{"$f":"IFERROR(INDEX(_xlfn.TEXTSPLIT(D10,\"/\"),5),\"\")","v":"nm0489319"}]
[null,null,null,"https://www.imdb.com/name/nm0000283/",{"$f":"IFERROR(INDEX(_xlfn.TEXTSPLIT(D11,\"/\"),5),\"\")","v":"nm0000283"}]
[null,null,null,"https://www.imdb.com/name/nm0890298/",{"$f":"IFERROR(INDEX(_xlfn.TEXTSPLIT(D12,\"/\"),5),\"\")","v":"nm0890298"}]
[null,null,null,"https://www.imdb.com/name/nm0001580/bio/",{"$f":"IFERROR(INDEX(_xlfn.TEXTSPLIT(D13,\"/\"),5),\"\")","v":"nm0001580"}]
[null,null,null,"https://www.imdb.com/name/nm0277618/awards/",{"$f":"IFERROR(INDEX(_xlfn.TEXTSPLIT(D14,\"/\"),5),\"\")","v":"nm0277618"}]
[null,null,null,"https://www.imdb.com/name/nm0749684/",{"$f":"IFERROR(INDEX(_xlfn.TEXTSPLIT(D15,\"/\"),5),\"\")","v":"nm0749684"}]
[null,null,null,"https://www.imdb.com/name/nm0222018/?language=de-de",{"$f":"IFERROR(INDEX(_xlfn.TEXTSPLIT(D16,\"/\"),5),\"\")","v":"nm0222018"}]
[null,null,null,"https://www.imdb.com/name/nm1538552/",{"$f":"IFERROR(INDEX(_xlfn.TEXTSPLIT(D17,\"/\"),5),\"\")","v":"nm1538552"}]
[null,null,null,"https://www.imdb.com/name/nm0358180/",{"$f":"IFERROR(INDEX(_xlfn.TEXTSPLIT(D18,\"/\"),5),\"\")","v":"nm0358180"}]
[null,null,null,"https://www.imdb.com/name/nm0401403",{"$f":"IFERROR(INDEX(_xlfn.TEXTSPLIT(D19,\"/\"),5),\"\")","v":"nm0401403"}]
[null,null,null,"https://www.imdb.com/name/nm1661622/",{"$f":"IFERROR(INDEX(_xlfn.TEXTSPLIT(D20,\"/\"),5),\"\")","v":"nm1661622"}]
[null,null,null,"https://www.imdb.com/name/nm1534206/",{"$f":"IFERROR(INDEX(_xlfn.TEXTSPLIT(D21,\"/\"),5),\"\")","v":"nm1534206"}]
[null,null,null,"https://www.imdb.com/name/nm8066528/",{"$f":"IFERROR(INDEX(_xlfn.TEXTSPLIT(D22,\"/\"),5),\"\")","v":"nm8066528"}]
[null,null,null,"https://www.imdb.com/name/nm0617790/",{"$f":"IFERROR(INDEX(_xlfn.TEXTSPLIT(D23,\"/\"),5),\"\")","v":"nm0617790"}]
[null,null,null,"https://www.imdb.com/name/nm0815478/",{"$f":"IFERROR(INDEX(_xlfn.TEXTSPLIT(D24,\"/\"),5),\"\")","v":"nm0815478"}]